bitfinex-derivatives/quotes_ETHF0:USTF0_20251213
["timestamp","ask_amount","ask_price","bid_price","bid_amount"]
[1765645637671,3.9341,3099.9,3099.8,1.4315]
[1765645639064,4.6625,3099.9,3099.8,1.4315]
[1765645639368,4.6625,3099.9,3099.5,0.4203]
[1765645639369,0.7263,3099.6,3099.5,1.8518]
[1765645639970,4.6625,3099.9,3099.8,0.7262]
[1765645640174,4.6625,3099.9,3099.8,1.4315]
[1765645640375,4.6625,3099.9,3099.8,0.7262]
[1765645640876,0.7263,3099.6,3099.5,1.8518]
[1765645641475,1.4547,3099.6,3099.5,1.8518]
[1765645642169,0.7263,3099.2,3099.1,4.64163926]
[1765645642373,0.04334985,3099.2,3099.1,4.64163926]
[1765645643073,3.2078,3099.9,3099.1,4.64163926]
[1765645643871,0.4813,3099.2,3099.1,4.64163926]
[1765645644075,3.2078,3099.9,3099.1,4.64163926]
[1765645645884,3.2078,3099.9,3099.5,0.4303]
[1765645646072,4.1732,3099.9,3099.8,0.7233]
[1765645646576,0.4827,3099.6,3099.5,1.9057]
[1765645648180,6.0782,3099.9,3099.8,1.4754]
[1765645648681,6.0782,3099.9,3099.8,0.7233]
[1765645649281,6.0782,3099.9,3099.8,1.4754]
[1765645649676,4.1732,3099.9,3099.8,1.4754]
[1765645649881,4.1732,3099.9,3099.8,0.7233]
[1765645652180,0.4827,3099.6,3099.5,1.9057]
[1765645652782,0.9654,3099.6,3099.5,1.9057]
[1765645653181,0.9654,3099.6,3099.5,0.4303]
[1765645654380,0.9654,3099.6,3099.5,1.1536]
[1765645655176,0.9654,3099.6,3099.5,0.4303]
[1765645655782,0.9654,3099.2,3099.1,4.68553926]
[1765645656281,4.1732,3099.5,3099.4,0.7233]
[1765645656483,4.1732,3099.5,3099.4,1.4754]
[1765645656875,3.6905,3099.5,3099.4,1.4754]
[1765645657585,4.1732,3099.5,3099.4,1.4754]
[1765645657985,4.1732,3099.5,3099.4,0.7233]
[1765645658389,0.4827,3099.2,3099.1,4.68553926]
[1765645660090,0.4827,3099.2,3099.1,1.47773926]
[1765645664893,4.1732,3099.6,3099.5,0.4303]
[1765645665094,3.2078,3099.6,3099.5,1.9057]
[1765645665294,3.6905,3099.6,3099.5,1.9057]
[1765645665882,4.1732,3099.6,3099.5,1.9057]
[1765645666787,4.1732,3099.6,3099.5,1.1536]
[1765645667089,4.1732,3099.6,3099.5,1.9057]
[1765645668195,4.1732,3099.6,3099.5,1.1536]
[1765645668695,4.1732,3099.6,3099.5,0.4303]
[1765645670900,4.1732,3099.6,3099.1,0.00233926]
[1765645670901,0.9654,3099.2,3099.1,1.47773926]
[1765645672901,4.1732,3099.6,3099.5,0.4303]
[1765645673097,4.1732,3099.6,3099.5,1.9057]
[1765645673098,3.6905,3099.6,3099.5,1.9057]
[1765645673294,3.2078,3099.6,3099.5,1.9057]
[1765645675505,3.688,3099.6,3099.5,1.9057]
[1765645675801,3.2078,3099.6,3099.5,1.9057]
[1765645676401,3.688,3099.6,3099.5,1.9057]
[1765645677504,4.1682,3099.6,3099.5,0.4303]
[1765645677705,4.1682,3099.6,3099.5,1.1386]
[1765645677906,4.1682,3099.6,3099.5,0.4303]
[1765645679207,4.1682,3099.6,3099.5,1.8398]
[1765645679812,3.688,3099.6,3099.5,1.8398]
[1765645680713,4.1682,3099.6,3099.5,0.4303]
[1765645680912,0.9604,3099.2,3099.1,1.41183926]
[1765645682312,3.2078,3099.6,3099.5,0.4299]
[1765645683309,3.2078,3099.6,3099.1,0.00233926]
[1765645683713,3.2078,3099.2,3099.1,1.41183926]
[1765645684318,3.2078,3099.7,3099.6,1.4095]
[1765645685526,3.2078,3099.7,3099.5,0.4299]
[1765645687020,3.2078,3099.7,3099.1,0.00233926]
[1765645687425,3.2078,3099.7,3099.1,1.41183926]
[1765645688227,3.2078,3099.7,3099.5,0.4299]
[1765645688428,1.59,3099.6,3099.5,0.4299]
[1765645688827,1.59,3099.6,3099.1,0.00233926]
[1765645689028,3.2078,3099.2,3099.1,0.00233926]
[1765645690826,3.2078,3099.2,3099.1,1.41183926]
[1765645691731,3.2078,3099.2,3099.1,0.00233926]
[1765645694723,9.2078,3099.2,3098.0,3.634]
[1765645694929,3.2078,3098.5,3098.1,0.7083]
[1765645695323,3.2078,3098.5,3098.4,1.4095]
[1765645695534,3.2078,3098.5,3098.4,0.7083]
[1765645695835,3.2078,3098.5,3098.4,0.00226762]
[1765645697533,3.2078,3098.5,3098.4,1.41176762]
[1765645699529,0.0048394,3098.6,3098.5,1.8394]
[1765645700833,1e-08,3098.6,3098.5,1.8394]
[1765645702442,1e-08,3098.6,3098.5,1.1909]
[1765645702636,1e-08,3098.6,3098.5,1.9307]
[1765645704933,1e-08,3098.6,3098.5,2.09205]
[1765645710843,1e-08,3098.6,3098.5,0.59125]
[1765645711044,1e-08,3098.6,3098.5,1.32825]
[1765645711346,1e-08,3098.6,3098.5,2.09375]
[1765645719454,3.2078,3099.1,3099.0,1.9319]
[1765645723968,3.2078,3099.1,3099.0,2.09322]
[1765645725961,14.9918394,3099.4,3099.3,0.737]
[1765645726263,14.9918394,3099.4,3099.3,1.5025]
[1765645726961,0.0048394,3099.4,3099.3,1.5025]
[1765645728561,0.0048394,3099.4,3099.3,0.737]
[1765645728956,0.0048394,3099.4,3099.3,1.5025]
[1765645734761,0.0048394,3099.4,3099.0,1.1664]
[1765645735069,0.0048394,3099.4,3099.0,1.9319]
[1765645736766,3.2078,3099.2,3099.1,1.5168]
[1765645751883,3.2078,3099.2,3099.1,0.7675]
[1765645754285,3.2078,3099.2,3099.0,1.9462]
[1765645755789,3.2078,3099.2,3099.0,1.1969]
[1765645756391,3.2078,3099.2,3099.0,1.9462]
[1765645758385,3.2078,3099.2,3098.5,5.1545]
[1765645758595,3.2078,3098.8,3098.7,1.5168]
[1765645759494,3.2078,3098.8,3098.7,0.7675]
[1765645759794,3.2078,3098.8,3098.5,1.1974]
[1765645760297,3.2078,3098.8,3098.5,1.9467]
[1765645760788,3.2078,3098.8,3098.7,0.7675]
[1765645761787,3.2078,3098.8,3098.5,0.4299]
[1765645761990,3.2078,3098.8,3098.5,1.1932]
[1765645762184,3.2078,3098.8,3098.5,1.9211]
[1765645762394,3.2078,3098.8,3098.5,0.4299]
[1765645764498,3.2078,3098.8,3098.5,1.1932]
[1765645764799,3.2078,3098.8,3098.5,1.9211]
[1765645765599,3.2078,3098.8,3098.7,0.7633]
[1765645765899,3.2078,3098.8,3098.7,1.5237]
[1765645767100,3.2078,3098.8,3098.5,1.8932]
[1765645767299,3.2078,3098.8,3098.5,0.4299]
[1765645769902,3.2078,3098.8,3098.5,1.1328]
[1765645770696,3.2078,3098.8,3098.5,0.4299]
[1765645772901,11.039,3098.7,3098.5,0.4299]
[1765645773890,11.039,3098.7,3098.5,1.1328]
[1765645774808,3.2078,3098.8,3098.5,1.8932]
[1765645775001,14.979,3098.7,3098.6,1.4633]
[1765645775807,3.2078,3098.8,3098.7,1.4633]
[1765645775999,18.1858,3098.8,3098.7,1.4633]
[1765645776406,18.1858,3098.8,3098.7,0.7029]
[1765645776597,18.1858,3098.8,3098.5,1.1328]
[1765645776899,18.1858,3098.8,3098.5,0.4299]
[1765645778000,18.1858,3098.8,3098.7,1.4633]
[1765645778709,18.1858,3098.8,3098.7,0.7029]
[1765645779009,18.1858,3098.8,3098.5,1.1328]
[1765645779212,18.1858,3098.8,3098.7,1.4633]
[1765645779909,3.2078,3098.8,3098.7,1.4633]
[1765645780110,4.7928,3098.8,3098.7,1.4633]
[1765645781001,4.7928,3098.8,3098.5,1.1328]
[1765645781203,4.7928,3098.8,3098.5,1.8932]
[1765645781404,3.2078,3098.8,3098.5,1.1328]
[1765645781703,3.2078,3098.8,3098.7,1.4633]
[1765645781902,4.7928,3098.8,3098.7,1.4633]
[1765645783708,3.2078,3098.8,3098.7,1.4633]
[1765645786914,10.674,3099.0,3098.7,1.4633]
[1765645787211,3.2078,3098.8,3098.7,1.4633]
[1765645788616,3.2078,3098.8,3098.7,0.7029]
[1765645789520,3.2078,3098.8,3098.7,1.4633]
[1765645790917,3.2078,3098.8,3098.5,1.8932]
[1765645791819,3.2078,3098.8,3098.5,1.1328]
[1765645792725,3.2078,3098.8,3098.5,1.8932]
[1765645795524,3.2078,3098.8,3098.5,0.4299]
[1765645795925,3.2078,3098.8,3098.5,1.1356]
[1765645796524,3.2078,3098.8,3098.5,1.8443]
[1765645797319,3.2078,3098.8,3098.5,1.1356]
[1765645797825,3.2078,3098.8,3098.5,0.4299]
[1765645799531,14.975,3099.0,3098.5,0.4299]
[1765645799831,3.2078,3098.6,3098.5,0.4299]
[1765645801424,3.2078,3098.6,3098.5,1.8443]
[1765645802436,3.0887,3099.1,3099.0,1.4144]
[1765645802623,4.7268,3099.1,3099.0,1.8423]
[1765645803834,4.7268,3099.1,3099.0,1.4144]
[1765645805633,4.7268,3099.1,3098.5,0.4299]
[1765645805937,0.3778,3099.0,3098.5,0.4299]
[1765645806129,0.7517,3098.6,3098.5,1.8443]
[1765645807038,0.3778,3099.0,3098.5,1.8443]
[1765645807235,1.8968,3099.0,3098.9,0.7057]
[1765645807540,0.7517,3098.6,3098.5,1.8443]
[1765645807739,1.519,3098.6,3098.5,1.8443]
[1765645808034,1.9419,3098.5,3098.4,0.00226762]
[1765645809740,1.9419,3098.5,3098.4,0.70796762]
[1765645810839,1.9419,3098.5,3098.4,0.00226762]
[1765645811636,5.1497,3098.5,3098.4,0.00226762]
[1765645815343,20.1247,3098.5,3098.4,0.00226762]
[1765645817238,1.519,3098.3,3098.2,0.0048394]
[1765645817436,0.7673,3097.4,3097.3,3.2078]
[1765645817735,1.519,3097.4,3097.3,4.6222]
[1765645818134,4.7268,3097.9,3097.8,0.7057]
[1765645818340,7.88298404,3097.9,3097.8,1.41771774]
[1765645818743,4.67518404,3097.9,3097.8,1.41771774]
[1765645818944,4.67518404,3097.9,3097.8,0.70901774]
[1765645819145,14.52118404,3097.9,3097.8,1.41771774]
[1765645819447,14.52118404,3097.9,3097.8,0.00331774]
[1765645819947,1.52318404,3097.9,3097.8,1.41771774]
[1765645821543,0.75588404,3097.9,3097.8,1.41771774]
[1765645822253,1.52318404,3097.9,3097.8,1.41771774]
[1765645822845,0.75588404,3097.9,3097.8,1.41771774]
[1765645823649,0.00418404,3097.9,3097.8,1.41771774]
[1765645823850,0.73198404,3097.9,3097.8,1.41771774]
[1765645824153,0.00418404,3097.9,3097.8,1.41771774]
[1765645824355,0.73198404,3097.9,3097.8,1.41771774]
[1765645824852,0.00418404,3097.9,3097.8,1.41771774]
[1765645825551,0.75018404,3097.9,3097.8,1.41771774]
[1765645825947,0.00418404,3097.9,3097.8,1.41771774]
[1765645827153,0.00039738,3097.9,3097.8,1.41771774]
[1765645831357,1.48349738,3097.9,3097.8,1.41771774]
[1765645831855,0.74639738,3097.9,3097.8,1.41771774]
[1765645832056,1.48349738,3097.9,3097.8,1.41771774]
[1765645832258,1.48349738,3097.9,3097.8,0.70901774]
[1765645832655,1.48349738,3097.9,3097.8,1.46951774]
[1765645833959,0.74639738,3097.9,3097.8,1.46951774]
[1765645834759,0.74639738,3097.9,3097.8,0.00331774]
[1765645834760,0.00039738,3097.9,3097.8,0.00331774]
[1765645835460,0.74639738,3097.9,3097.8,1.51171774]
[1765645836055,1.48349738,3097.9,3097.8,1.51171774]
[1765645837666,1.48349738,3097.9,3097.8,0.75121774]
[1765645837960,1.48349738,3097.9,3097.8,0.00331774]
[1765645840566,4.69129738,3097.9,3097.8,0.00331774]
[1765645843570,0.746,3097.1,3097.0,1.9363]
[1765645843770,0.07090602,3097.1,3097.0,1.9363]
[1765645843965,0.80800602,3097.1,3097.0,1.9363]
[1765645844363,0.07090602,3097.1,3097.0,1.9363]
[1765645844562,0.07090602,3097.1,3097.0,1.94049013]
[1765645844970,1.716,3097.6,3097.0,1.94049013]
[1765645845572,0.746,3097.1,3097.0,1.94049013]
[1765645847770,1.4831,3097.1,3097.0,1.94049013]
[1765645848167,0.746,3097.1,3097.0,1.94049013]
[1765645849580,1.4831,3097.1,3097.0,1.17999013]
[1765645850084,1.4831,3097.1,3097.0,1.94049013]
[1765645850586,0.746,3097.1,3097.0,1.94049013]
[1765645853186,1.4831,3097.1,3097.0,1.94049013]
[1765645853889,0.746,3097.1,3097.0,1.94049013]
[1765645854084,1.4831,3097.1,3097.0,1.94049013]
[1765645854285,0.746,3097.1,3097.0,1.94049013]
[1765645856282,1.4831,3097.1,3097.0,1.94049013]
[1765645856489,1.4831,3097.1,3097.0,1.17999013]
[1765645857187,1.4831,3097.1,3097.0,1.92479013]
[1765645858494,3.9331,3097.5,3097.4,1.46]
[1765645859295,4.675,3097.5,3097.4,1.46]
[1765645860194,0.7253,3097.1,3097.0,1.89209013]
[1765645860395,3.2078,3097.5,3097.0,1.89209013]
[1765645860595,4.675,3097.5,3097.4,0.7152]
[1765645861295,3.9331,3097.5,3097.4,1.46]
[1765645861488,3.2078,3097.5,3097.4,1.46]
[1765645861689,3.9331,3097.5,3097.4,1.46]
[1765645861889,4.675,3097.5,3097.4,1.46]
[1765645862086,4.675,3097.5,3097.4,0.7152]
[1765645863392,4.675,3097.5,3097.4,1.46]
[1765645864496,3.2078,3097.5,3097.4,1.46]
[1765645864696,3.9331,3097.5,3097.4,1.46]
[1765645864897,3.2078,3097.5,3097.4,1.46]
[1765645872400,2.47350763,3097.5,3097.4,1.46]
[1765645874806,2.47350763,3097.5,3097.4,7.20831102]
[1765645875301,0.00039738,3097.9,3097.4,7.20831102]
[1765645875302,3.20819738,3097.9,3097.8,1.46]
[1765645875904,3.93349738,3097.9,3097.8,1.46]
[1765645876104,4.67539738,3097.9,3097.8,1.46]
[1765645878514,3.20819738,3097.9,3097.8,1.46]
[1765645879809,4.67539738,3097.9,3097.8,1.46]
[1765645881210,3.20819738,3097.9,3097.8,1.46]
[1765645883612,3.93349738,3097.9,3097.8,1.46]
[1765645883810,3.20819738,3097.9,3097.8,1.46]
[1765645884513,3.92979738,3097.9,3097.8,1.46]
[1765645885413,4.70019738,3097.9,3097.8,1.46]
[1765645885814,3.92979738,3097.9,3097.8,1.46]
[1765645888102,4.63799738,3097.9,3097.8,1.46]
[1765645889414,1.4613,3097.8,3097.7,0.91029]
[1765645889817,1.4613,3097.8,3097.7,1.65709]
[1765645895418,3.96129738,3097.9,3097.8,1.4957]
[1765645896614,3.20819738,3097.9,3097.8,1.4957]
[1765645897320,0.00039738,3097.9,3097.7,0.16139]
[1765645898710,0.00039738,3097.9,3097.8,0.16139]
[1765645898915,0.00039738,3097.9,3097.8,3.77382305]
[1765645899118,3.2078,3098.3,3098.2,1.4957]
[1765645899516,3.9609,3098.3,3098.2,1.4957]
[1765645900017,3.96329872,3098.3,3098.2,1.4957]
[1765645900224,3.21019872,3098.3,3098.2,1.4957]
[1765645900525,0.00239872,3098.3,3098.2,1.65707]
[1765645901428,0.75549872,3098.3,3098.2,1.65707]
[1765645902031,0.00239872,3098.3,3098.2,1.65707]
[1765645905725,0.0048394,3098.6,3098.5,2.08695]
[1765645906625,0.00902098,3098.6,3098.5,2.08695]
[1765645920544,1.43722098,3098.6,3098.5,1.34015]
[1765645921145,1.43722098,3098.6,3098.5,2.10595]
[1765645923040,1.43722098,3098.6,3098.5,1.34015]
[1765645923741,1.43722098,3098.6,3098.5,2.10595]
[1765645924444,0.71482098,3098.6,3098.5,2.10595]
[1765645924646,0.00902098,3098.6,3098.5,2.10595]
[1765645932151,0.71482098,3098.6,3098.5,2.10595]
[1765645933045,0.00902098,3098.6,3098.5,2.10595]
[1765645936551,0.71482098,3098.6,3098.5,2.10595]
[1765645937654,1.43722098,3098.6,3098.5,2.10595]
[1765645938250,0.71482098,3098.6,3098.5,2.10595]
[1765645938750,0.00902098,3098.6,3098.5,2.10595]
[1765645940350,0.71482098,3098.6,3098.5,2.10595]
[1765645941653,1.43722098,3098.6,3098.5,2.10595]
[1765645942856,0.71482098,3098.6,3098.5,2.10595]
[1765645943154,1.47962098,3098.6,3098.5,2.10595]
[1765645943353,0.71482098,3098.6,3098.5,2.10595]
[1765645943956,0.00902098,3098.6,3098.5,2.10595]
[1765645960157,3.2078,3099.1,3099.0,1.8746]
[1765645961263,3.21143455,3099.1,3099.0,1.8746]
[1765645961659,3.21143455,3099.1,3099.0,2.03592]
[1765645961861,0.0048394,3099.4,3099.3,1.4539]
[1765645962866,0.00867348,3099.4,3099.3,1.45654541]
[1765645965860,0.00867348,3099.4,3099.3,5.23331505]
[1765645969264,4.6903,3099.9,3099.8,1.4539]
[1765645969858,1.4825,3099.7,3099.6,1.61519]
[1765645970169,1.48521418,3099.7,3099.6,1.61519]
[1765645970364,0.00271418,3099.7,3099.6,1.61519]
[1765645970762,0.00271418,3099.7,3099.6,1.87109352]
[1765645978280,1.51011418,3099.7,3099.6,1.87109352]
[1765645978579,0.00271418,3099.7,3099.6,1.87109352]
[1765645978777,1.51011418,3099.7,3099.6,1.87109352]
[1765645978982,0.75951418,3099.7,3099.6,1.87109352]
[1765645979672,0.00271418,3099.7,3099.6,1.87109352]
[1765645980483,0.75951418,3099.7,3099.6,1.87109352]
[1765645980675,1.51011418,3099.7,3099.6,0.86839]
[1765645981178,1.51011418,3099.7,3099.6,0.16129]
[1765645981381,1.51011418,3099.7,3099.6,1.60529]
[1765645981985,1.51011418,3099.7,3099.6,0.86089]
[1765645982285,1.51011418,3099.7,3099.6,0.16129]
[1765645982776,0.00271418,3099.7,3099.6,1.60529]
[1765645984070,0.00271418,3099.7,3099.6,5.14934406]
[1765645984287,3.2078,3099.9,3099.8,1.60528]
[1765645984484,0.0048394,3100.0,3099.9,1.60528]
[1765645985080,0.422,3101.5,3100.1,3.228]
[1765645985383,1.93292102,3101.5,3101.4,0.16119]
[1765645985782,1.18232102,3101.5,3101.4,0.16119]
[1765645986077,0.42552102,3101.5,3101.4,0.16119]
[1765645987077,1.18232102,3101.5,3101.4,0.16119]
[1765645987577,0.42552102,3101.5,3101.4,0.16119]
[1765645988587,1.18232102,3101.5,3101.4,0.16119]
[1765645988780,1.93292102,3101.5,3101.4,0.16119]
[1765645989680,1.5074,3101.2,3101.1,3.2126394]
[1765645993185,1.5074,3100.6,3100.5,3.2078]
[1765645993391,0.7568,3100.5,3100.4,1.60525]
[1765645993688,4.7152,3100.8,3100.7,1.444]
[1765645994088,1.5074,3100.7,3100.6,0.16124]
[1765645996890,1.5074,3100.7,3100.6,0.86084]
[1765645997090,1.5074,3100.7,3100.6,1.60524]
[1765645997592,3.9646,3100.8,3100.7,1.444]
[1765645997792,4.7152,3100.8,3100.7,1.444]
[1765645999589,3.9646,3100.8,3100.7,1.444]
[1765645999786,4.7152,3100.8,3100.7,1.444]
[1765645999986,4.7152,3100.8,3100.7,0.6996]
[1765646000186,1.5074,3100.7,3100.6,0.86084]
[1765646000690,1.5074,3100.7,3100.6,1.60524]
[1765646001389,1.5074,3100.7,3100.6,0.16124]
[1765646007202,1.5074,3100.7,3100.6,0.86084]
[1765646007493,1.5074,3100.7,3100.6,0.16124]
[1765646009899,1.5074,3100.7,3100.6,1.20034]
[1765646010199,1.5074,3100.7,3100.6,2.25274]
[1765646011100,1.5074,3100.7,3100.6,1.20034]
[1765646012302,1.5074,3100.7,3100.6,0.16124]
[1765646013405,1.5074,3100.7,3100.6,1.20034]
[1765646014404,1.5074,3100.7,3100.6,2.25274]
[1765646015002,1.8382,3100.7,3100.6,2.25274]
[1765646015707,1.8382,3100.7,3100.6,1.20034]
[1765646017299,3.2078,3100.8,3100.6,0.16124]
[1765646017504,4.2727,3100.8,3100.7,2.0915]
[1765646018099,5.3541,3100.8,3100.7,2.0915]
[1765646019408,5.3541,3100.8,3100.7,1.0391]
[1765646019610,2.1463,3100.7,3100.6,1.20034]
[1765646019909,2.1463,3100.7,3100.6,2.25274]
[1765646021715,5.3541,3100.7,3100.6,2.25274]
[1765646022127,5.3541,3100.7,3100.6,1.20034]
[1765646022528,5.3541,3100.7,3100.6,2.25274]
[1765646023426,5.3541,3100.7,3100.6,1.20034]
[1765646024527,5.3541,3100.7,3100.6,2.25274]
[1765646026227,5.3541,3100.7,3100.6,0.16124]
[1765646027021,5.3541,3100.7,3100.6,1.20034]
[1765646027726,2.1463,3100.7,3100.6,1.20034]
[1765646027931,5.3541,3100.7,3100.6,1.20034]
[1765646028931,5.3541,3100.7,3100.6,0.16124]
[1765646029629,5.3541,3100.7,3100.6,1.20034]
[1765646029823,5.3541,3100.7,3100.6,2.25274]
[1765646030024,3.2078,3100.7,3100.6,2.25274]
[1765646030718,5.12452102,3101.5,3101.1,2.0915]
[1765646030719,5.3541,3101.2,3101.1,2.0915]
[1765646030932,3.2078,3101.2,3101.1,2.0915]
[1765646031229,3.2078,3101.2,3101.1,2.25272]
[1765646031434,2.14982102,3101.5,3101.4,2.0915]
[1765646032628,2.14982102,3101.5,3101.4,1.0391]
[1765646032827,1.0649,3101.2,3101.1,2.25272]
[1765646033025,2.78042102,3101.5,3101.4,1.0391]
[1765646034832,2.78042102,3101.5,3101.4,2.0915]
[1765646035033,2.78042102,3101.5,3101.4,2.2527]
[1765646035034,2.14982102,3101.5,3101.4,2.2527]
[1765646035828,0.00352102,3101.5,3101.4,2.2527]
[1765646036233,1.90962102,3101.5,3101.4,2.2527]
[1765646038337,0.98152102,3101.5,3101.4,2.2527]
[1765646039039,1.90962102,3101.5,3101.4,2.2527]
[1765646039242,2.47392102,3101.5,3101.4,1.2003]
[1765646039539,2.47392102,3101.5,3101.4,2.1877]
[1765646039837,1.90962102,3101.5,3101.4,2.1877]
[1765646040839,2.47392102,3101.5,3101.4,0.1612]
[1765646046543,2.47392102,3101.5,3101.4,1.1423]
[1765646046737,2.47392102,3101.5,3101.4,2.1297]
[1765646046934,2.47392102,3101.5,3101.4,1.1423]
[1765646047131,2.47392102,3101.5,3101.4,0.1612]
[1765646047641,1.90962102,3101.5,3101.4,2.1297]
[1765646047840,0.00352102,3101.5,3101.4,2.1297]
[1765646048836,0.00352102,3101.5,3101.4,5.3375]
[1765646049141,2.47392102,3101.5,3101.4,2.1297]
[1765646050542,1.90962102,3101.5,3101.4,2.1297]
[1765646052140,0.98152102,3101.5,3101.4,2.1297]
[1765646052342,0.00352102,3101.5,3101.4,2.1297]
[1765646053745,0.98152102,3101.5,3101.4,2.1297]
[1765646059443,1.90962102,3101.5,3101.4,2.1297]
[1765646062255,0.98152102,3101.5,3101.4,2.1297]
[1765646063452,1.88132102,3101.5,3101.4,2.1297]
[1765646066457,2.27522102,3101.5,3101.4,0.1612]
[1765646073955,2.27522102,3101.5,3100.7,0.16124]
[1765646075053,1.6803,3100.8,3100.7,1.88344]
[1765646075252,1.6803,3100.8,3100.7,1.02274]
[1765646075446,0.8465,3100.8,3100.7,1.88344]
[1765646075656,0.8465,3100.9,3100.8,1.88343]
[1765646075958,1.6803,3100.9,3100.8,1.88343]
[1765646076357,0.8465,3100.9,3100.8,1.88343]
[1765646076560,4.8881,3101.3,3101.2,0.8615]
[1765646076752,4.8881,3101.3,3100.8,0.16123]
[1765646076753,0.8465,3100.9,3100.8,1.88343]
[1765646076949,3.2078,3101.3,3100.6,3.2078]
[1765646076950,4.0416,3101.3,3101.2,0.8615]
[1765646077153,4.8881,3101.3,3101.2,0.8615]
[1765646077457,0.8465,3101.0,3100.9,1.02272]
[1765646077657,0.8465,3101.0,3100.9,1.88342]
[1765646077852,1.6803,3101.0,3100.9,1.88342]
[1765646078255,4.8881,3101.3,3101.2,1.7222]
[1765646078663,4.8881,3101.3,3101.2,0.8615]
[1765646078863,1.6803,3101.1,3101.0,2.2746]
[1765646080061,1.6803,3101.1,3101.0,2.43582]
[1765646080863,1.6803,3101.1,3101.0,1.88342]
[1765646087566,1.6803,3101.1,3101.0,1.02272]
[1765646087769,1.6803,3101.1,3101.0,0.16122]
[1765646092066,1.6803,3101.1,3101.0,1.02272]
[1765646092474,1.6803,3101.1,3101.0,0.16122]
[1765646094668,1.6803,3101.1,3101.0,1.88342]
[1765646095872,1.6803,3101.1,3101.0,1.02272]
[1765646096478,1.6803,3101.1,3101.0,0.16122]
[1765646101679,4.8881,3101.1,3101.0,0.16122]
[1765646106790,4.8881,3101.1,3101.0,0.93712]
[1765646107187,4.8881,3101.1,3101.0,0.16122]
[1765646108189,4.8881,3101.1,3101.0,1.74462]
[1765646108381,4.8881,3101.1,3101.0,2.19772]
[1765646108590,3.2078,3101.1,3101.0,2.19772]
[1765646108787,4.79552102,3101.5,3101.4,1.5834]
[1765646111295,1.58772102,3101.5,3101.4,1.5834]
[1765646114902,1.58772102,3101.5,3101.4,4.7912]
[1765646118216,0.76862102,3101.5,3101.4,4.7912]
[1765646120419,1.58772102,3101.5,3101.4,4.7912]
[1765646121018,0.76862102,3101.5,3101.4,4.7912]
[1765646122820,0.00352102,3101.5,3101.4,4.7912]
[1765646124018,0.76352102,3101.5,3101.4,4.7912]
[1765646124521,1.47172102,3101.5,3101.4,4.7912]
[1765646125523,1.93412102,3101.5,3101.4,3.79315951]
[1765646125827,1.93412102,3101.5,3101.4,4.53885951]
[1765646128324,1.22592102,3101.5,3101.4,4.53885951]
[1765646128523,0.76352102,3101.5,3101.4,4.53885951]
[1765646129224,0.00352102,3101.5,3101.4,4.53885951]
[1765646130925,0.00352102,3101.5,3101.4,4.70005951]
[1765646132625,5.1077,3102.5,3102.4,0.7457]
[1765646132828,5.1077,3102.5,3101.9,3.2078]
[1765646133617,5.11643242,3102.5,3101.9,3.2102791]
[1765646133825,3.21653242,3102.5,3102.4,1.4516]
[1765646134015,0.00873242,3102.5,3102.4,4.6594]
[1765646134221,2.0231,3103.0,3102.9,1.4516]
[1765646134518,4.6857,3103.2,3103.1,1.4516]
[1765646134824,1.4779,3103.2,3103.1,0.7457]
[1765646135026,1.4779,3103.2,3103.1,1.4516]
[1765646135330,1.48023053,3103.2,3103.1,1.4516]
[1765646135523,1.48023053,3103.2,3103.1,0.7457]
[1765646135821,1.48023053,3103.2,3103.1,1.4516]
[1765646136015,0.74033053,3103.2,3103.1,1.4516]
[1765646136217,0.00233053,3103.2,3103.1,1.4516]
[1765646137821,0.74033053,3103.2,3103.1,1.4516]
[1765646138221,1.48023053,3103.2,3103.1,1.4516]
[1765646140029,0.74033053,3103.2,3103.1,1.61271]
[1765646140630,0.00233053,3103.2,3103.1,1.61271]
[1765646146533,3.6702,3104.0,3103.0,0.4316]
[1765646146534,5.1481,3104.0,3103.9,1.4516]
[1765646146836,5.1481,3104.0,3103.9,0.7457]
[1765646147532,5.15111067,3104.0,3103.9,0.7457]
[1765646148233,1.4779,3103.8,3103.7,1.61268]
[1765646148733,0.738,3103.8,3103.7,1.61268]
[1765646150246,1.4779,3103.8,3103.7,0.16108]
[1765646150540,1.4779,3103.7,3103.6,0.0048394]
[1765646150728,1.4779,3103.3,3103.2,0.1611]
[1765646152936,1.9403,3103.0,3102.9,0.0048394]
[1765646157348,1.9403,3103.0,3102.9,0.7505394]
[1765646159946,1.9403,3103.0,3102.9,0.0048394]
[1765646160842,1.9403,3103.0,3102.9,3.94e-05]
[1765646167055,0.4624,3103.0,3102.9,3.94e-05]
[1765646172056,1.919,3103.0,3102.9,0.7666394]
[1765646172448,1.2131,3103.0,3102.9,3.94e-05]
[1765646173157,1.919,3103.0,3102.9,0.7666394]
[1765646173960,1.2131,3103.0,3102.9,3.94e-05]
[1765646175357,1.919,3103.0,3102.9,0.7666394]
[1765646175860,1.919,3103.0,3102.9,1.4843394]
[1765646176751,1.919,3103.0,3102.9,0.7666394]
[1765646178258,0.4624,3103.0,3102.9,3.94e-05]
[1765646182854,1.919,3103.0,3102.9,0.7666394]
[1765646183757,1.919,3103.0,3102.9,1.4843394]
[1765646184362,1.1683,3103.0,3102.9,1.4843394]
[1765646185864,0.7059,3103.0,3102.9,1.4843394]
[1765646187866,1.4253,3103.0,3102.9,1.4843394]
[1765646188666,1.4533,3103.0,3102.9,1.4843394]
[1765646188867,0.464,3103.0,3102.9,3.94e-05]
[1765646190462,0.464,3103.0,3102.9,0.7586394]
[1765646190669,1.9173,3103.0,3102.9,0.7586394]
[1765646198974,1.9173,3103.0,3102.9,1.5215394]
[1765646201577,1.9173,3103.0,3102.9,0.7586394]
[1765646202176,0.464,3103.0,3102.9,3.94e-05]
[1765646210885,1.9173,3103.0,3102.9,1.5215394]